bitfinex/quotes_BTCUSD_20250917
["timestamp","ask_amount","ask_price","bid_price","bid_amount"]
[1758082162518,0.71388783,116540.0,116530.0,0.3503801]
[1758082162728,0.71388783,116540.0,116530.0,0.3753601]
[1758082162944,0.71388783,116540.0,116530.0,0.02826701]
[1758082163173,0.71388783,116540.0,116530.0,0.3753601]
[1758082164018,0.71389683,116540.0,116530.0,0.3753601]
[1758082165670,0.71389683,116540.0,116530.0,0.3783901]
[1758082167260,0.71793579,116540.0,116530.0,0.3783901]
[1758082167689,0.63143434,116540.0,116530.0,0.3783901]
[1758082167914,0.6314534,116540.0,116530.0,0.3783901]
[1758082171281,0.6335734,116540.0,116530.0,0.3783901]
[1758082172624,0.6314534,116540.0,116530.0,0.3783901]
[1758082177847,0.6314534,116540.0,116530.0,0.33998756]
[1758082180934,0.6314534,116540.0,116530.0,0.03129701]
[1758082181175,0.6314534,116540.0,116530.0,0.33998756]
[1758082181365,0.3632134,116540.0,116530.0,0.33998756]
[1758082183558,0.3632134,116540.0,116530.0,0.03129701]
[1758082183775,0.3632134,116540.0,116530.0,0.33998756]
[1758082187424,0.36323312,116540.0,116530.0,0.33998756]
[1758082187630,0.36323312,116540.0,116530.0,0.60830756]
[1758082191957,0.36323314,116540.0,116530.0,0.60830756]
[1758082192166,0.44603747,116540.0,116530.0,0.60830756]
[1758082193336,0.44001877,116540.0,116530.0,0.60830756]
[1758082193546,0.44001877,116540.0,116530.0,0.33998756]
[1758082193702,0.44001877,116540.0,116530.0,0.60830756]
[1758082194333,0.44001877,116540.0,116530.0,0.60683756]
[1758082198084,0.35721444,116540.0,116530.0,0.60683756]
[1758082198435,0.36323315,116540.0,116530.0,0.60683756]
[1758082201070,0.35721444,116540.0,116530.0,0.60683756]
[1758082201565,0.35721444,116540.0,116530.0,0.29814701]
[1758082201802,0.35721444,116540.0,116530.0,0.60683756]
[1758082202022,0.4393459,116540.0,116530.0,0.60683756]
[1758082202967,0.35721444,116540.0,116530.0,0.60683756]
[1758082204019,0.35721444,116540.0,116530.0,0.29814701]
[1758082204204,0.35721444,116540.0,116530.0,0.60683756]
[1758082204861,0.34121634,116540.0,116530.0,0.60683756]
[1758082205764,0.35725584,116540.0,116530.0,0.60683756]
[1758082205965,0.34121634,116540.0,116530.0,0.60683756]
[1758082208237,0.35725577,116540.0,116530.0,0.60683756]
[1758082208591,0.34121634,116540.0,116530.0,0.60683756]
[1758082209060,0.35725711,116540.0,116530.0,0.60683756]
[1758082211831,0.35725711,116540.0,116530.0,0.33851756]
[1758082212030,0.35725711,116540.0,116530.0,0.60679756]
[1758082214768,0.35725711,116540.0,116530.0,0.29810701]
[1758082215003,0.35725711,116540.0,116530.0,0.60679756]
[1758082217874,0.35725711,116540.0,116530.0,0.33851756]
[1758082218082,0.35725711,116540.0,116530.0,0.77838718]
[1758082218576,0.35593712,116540.0,116530.0,0.77838718]
[1758082221418,0.35804712,116540.0,116530.0,0.48146718]
[1758082221636,0.35804712,116540.0,116530.0,0.75167718]
[1758082221821,0.35804712,116540.0,116530.0,0.77553718]
[1758082222028,0.35593712,116540.0,116530.0,0.77863718]
[1758082223129,0.18564222,116540.0,116530.0,0.86513863]
[1758082224402,0.16960145,116540.0,116530.0,0.86513863]
[1758082227028,0.16950145,116540.0,116530.0,0.86513863]
[1758082227569,0.16950145,116540.0,116530.0,0.94757863]
[1758082227780,0.16850145,116540.0,116530.0,0.94757863]
[1758082228005,0.16650145,116540.0,116530.0,0.94657863]
[1758082228418,0.16750145,116540.0,116530.0,0.67933863]
[1758082228661,0.16750145,116540.0,116530.0,0.94757863]
[1758082238910,0.16750145,116540.0,116530.0,0.67933863]
[1758082239113,0.16750145,116540.0,116530.0,0.94753863]
[1758082240035,0.16750145,116540.0,116530.0,0.98600333]
[1758082241736,0.16750145,116540.0,116530.0,1.01178407]
[1758082242171,0.16750145,116540.0,116530.0,0.74358407]
[1758082242368,0.16750145,116540.0,116530.0,1.01174407]
[1758082242576,0.16750145,116540.0,116530.0,0.74358407]
[1758082242775,0.16750145,116540.0,116530.0,1.01174407]
[1758082243084,0.16750145,116540.0,116530.0,0.74358407]
[1758082243284,0.16750145,116540.0,116530.0,1.01174407]
[1758082243507,0.16750145,116540.0,116530.0,0.74358407]
[1758082243913,0.16750145,116540.0,116530.0,1.01174407]
[1758082245224,0.16750145,116540.0,116530.0,1.35889932]
[1758082245432,0.16750145,116540.0,116530.0,1.01174407]
[1758082246536,0.16750145,116540.0,116530.0,1.07455955]
[1758082248206,0.16750145,116540.0,116530.0,0.80639955]
[1758082248583,0.16750145,116540.0,116530.0,1.07455955]
[1758082250783,0.16750145,116540.0,116530.0,1.4217148]
[1758082250997,0.08750145,116540.0,116530.0,1.4217148]
[1758082252560,0.08750145,116540.0,116530.0,1.1535548]
[1758082252763,0.08750145,116540.0,116530.0,1.4216748]
[1758082254464,0.08750145,116540.0,116530.0,1.1535548]
[1758082254681,0.08750145,116540.0,116530.0,1.07451955]
[1758082256048,0.08750145,116540.0,116530.0,0.80639955]
[1758082256252,0.08750145,116540.0,116530.0,1.07451955]
[1758082260544,0.08750145,116540.0,116530.0,0.80639955]
[1758082260755,0.08750145,116540.0,116530.0,1.07444955]
[1758082262041,0.08750145,116540.0,116530.0,0.80636955]
[1758082262241,0.08750145,116540.0,116530.0,1.07444955]
[1758082263242,0.16750145,116540.0,116530.0,1.07444955]
[1758082264350,0.16750145,116540.0,116530.0,1.05061955]
[1758082264565,0.16750145,116540.0,116530.0,0.78253955]
[1758082264803,0.16750145,116540.0,116530.0,1.05061955]
[1758082266189,0.16567338,116540.0,116530.0,1.05061955]
[1758082267496,0.16567338,116540.0,116530.0,0.78253955]
[1758082267716,0.16567338,116540.0,116530.0,1.05057955]
[1758082268328,0.16567338,116540.0,116530.0,0.78253955]
[1758082268544,0.16567338,116540.0,116530.0,1.05057955]
[1758082285219,0.16567338,116540.0,116530.0,0.78253955]
[1758082285465,0.16567338,116540.0,116530.0,1.05053955]
[1758082288480,0.16567338,116540.0,116530.0,0.7033843]
[1758082288697,0.16567338,116540.0,116530.0,0.78253955]
[1758082288917,0.16567338,116540.0,116530.0,1.05049955]
[1758082295100,0.16567338,116540.0,116530.0,0.78253955]
[1758082295320,0.08567338,116540.0,116530.0,1.05049955]
[1758082301990,0.08567338,116540.0,116530.0,1.0119331]
[1758082309883,0.08567338,116540.0,116530.0,0.7439731]
[1758082310097,0.08567338,116540.0,116530.0,1.0118531]
[1758082315106,0.08567338,116540.0,116530.0,0.9294131]
[1758082316864,0.08567338,116540.0,116530.0,0.6615331]
[1758082317051,0.08567338,116540.0,116530.0,0.9294131]
[1758082323898,0.08567338,116540.0,116530.0,0.9533031]
[1758082324891,0.08567338,116540.0,116530.0,0.9532631]
[1758082325321,0.08567338,116540.0,116530.0,0.9262731]
[1758082325568,0.08567338,116540.0,116530.0,0.9501631]
[1758082325754,0.08567338,116540.0,116530.0,0.9533631]
[1758082326045,0.08567338,116540.0,116530.0,0.6447743]
[1758082326258,0.08567338,116540.0,116530.0,0.9533631]
[1758082330273,0.08567338,116540.0,116530.0,0.89054762]
[1758082330677,0.08764338,116540.0,116530.0,0.62270762]
[1758082330900,0.08764338,116540.0,116530.0,0.50714617]
[1758082331078,0.11363338,116540.0,116530.0,0.77494617]
[1758082331496,0.11050338,116540.0,116530.0,0.77494617]
[1758082332261,0.19050338,116540.0,116530.0,0.77494617]
[1758082333134,0.16764338,116540.0,116530.0,0.77705617]
[1758082333670,0.16764338,116540.0,116530.0,0.86355762]
[1758082333878,0.16764338,116540.0,116530.0,0.88744762]
[1758082335472,0.16764338,116540.0,116530.0,0.89064762]
[1758082335473,0.16567338,116540.0,116530.0,0.89064762]
[1758082335695,0.16764338,116540.0,116530.0,0.89064762]
[1758082335938,0.16567338,116540.0,116530.0,0.89064762]
[1758082337062,0.19050338,116540.0,116530.0,0.86144762]
[1758082337525,0.16764338,116540.0,116530.0,0.86144762]
[1758082338786,0.16764338,116540.0,116530.0,0.86355762]
[1758082339741,0.16764338,116540.0,116530.0,0.89064762]
[1758082340370,0.16567338,116540.0,116530.0,0.89064762]
[1758082343511,0.08567338,116540.0,116530.0,0.89064762]
[1758082351473,0.08567338,116540.0,116530.0,0.62284762]
[1758082351677,0.08567338,116540.0,116530.0,0.89060762]
[1758082352308,0.16567338,116540.0,116530.0,0.89060762]
[1758082356525,0.16567338,116540.0,116530.0,0.89056762]
[1758082358566,0.16567338,116540.0,116530.0,0.62284762]
[1758082358774,0.16567338,116540.0,116530.0,0.89056762]
[1758082359652,0.16567338,116540.0,116530.0,0.62284762]
[1758082359861,0.16567338,116540.0,116530.0,0.89056762]
[1758082361832,0.16567338,116540.0,116530.0,0.62284762]
[1758082362426,0.16567338,116540.0,116530.0,0.89056762]
[1758082363821,0.16567338,116540.0,116530.0,0.92912001]
[1758082365801,0.16567338,116540.0,116530.0,1.2762612]
[1758082366018,0.081,116540.0,116530.0,1.68158827]
[1758082366703,0.081,116540.0,116530.0,1.68058827]
[1758082366907,0.08,116540.0,116530.0,1.68058827]
[1758082367133,0.082,116540.0,116530.0,1.68158827]
[1758082367917,0.082,116540.0,116530.0,1.41386827]
[1758082368057,0.082,116540.0,116530.0,1.68258827]
[1758082368259,0.082,116540.0,116530.0,1.68158827]
[1758082368467,0.08,116540.0,116530.0,1.68158827]
[1758082369373,0.081,116540.0,116530.0,1.68258827]
[1758082369583,0.081,116540.0,116530.0,1.41486827]
[1758082369998,0.081,116540.0,116530.0,1.68254827]
[1758082373405,0.001,116540.0,116530.0,1.41486827]
[1758082373669,0.001,116540.0,116530.0,1.68254827]
[1758082374693,0.001,116540.0,116530.0,1.41486827]
[1758082374902,0.001,116540.0,116530.0,1.68254827]
[1758082379038,0.2250015,116570.0,116550.0,0.17160017]
[1758082379242,0.11321145,116560.0,116550.0,0.78720094]
[1758082379443,0.11321145,116560.0,116550.0,0.78642136]
[1758082379936,0.11321145,116560.0,116550.0,0.81219906]
[1758082380111,0.11331145,116560.0,116550.0,0.81219906]
[1758082380520,0.11331145,116560.0,116550.0,1.15934025]
[1758082380834,0.08871145,116560.0,116550.0,1.16149025]
[1758082381064,0.08871145,116560.0,116550.0,1.18492025]
[1758082381296,0.08871145,116560.0,116550.0,1.18502025]
[1758082381506,0.09271145,116560.0,116550.0,1.18602025]
[1758082382530,0.17271145,116560.0,116550.0,1.18602025]
[1758082384554,0.17271145,116560.0,116550.0,1.16259025]
[1758082384761,0.19731145,116560.0,116550.0,1.16259025]
[1758082386200,0.17271145,116560.0,116550.0,1.16259025]
[1758082389110,0.17271145,116560.0,116550.0,0.46615787]
[1758082389327,0.17271145,116560.0,116550.0,1.16044025]
[1758082391686,0.17271145,116560.0,116550.0,1.16259025]
[1758082393770,0.34429689,116560.0,116550.0,0.89491025]
[1758082393990,0.36889689,116560.0,116550.0,1.16036025]
[1758082394687,0.37187689,116560.0,116550.0,0.2944777]
[1758082394935,0.37187689,116560.0,116550.0,0.98876008]
[1758082395364,0.37187689,116560.0,116550.0,0.64161889]
[1758082395703,0.37187689,116560.0,116550.0,0.98876008]
[1758082395919,0.37187689,116560.0,116550.0,1.16036025]
[1758082398360,0.36687689,116560.0,116550.0,1.16036025]
[1758082399697,0.34227689,116560.0,116550.0,0.89276025]
[1758082399916,0.36687689,116560.0,116550.0,1.16036025]
[1758082400943,0.36687689,116560.0,116550.0,0.98876008]
[1758082403228,0.36687689,116560.0,116550.0,0.72116008]
[1758082403457,0.36687689,116560.0,116550.0,0.98876008]
[1758082404102,0.36687689,116560.0,116550.0,0.64161889]
[1758082404724,0.36187689,116560.0,116550.0,0.64161889]
[1758082409660,0.36187689,116560.0,116550.0,0.98876008]
[1758082409873,0.36187689,116560.0,116550.0,0.98872008]
[1758082410130,0.36187689,116560.0,116550.0,0.64157889]
[1758082410968,0.35687689,116560.0,116550.0,0.64157889]
[1758082417552,0.35687689,116560.0,116550.0,0.64210589]
[1758082421916,0.35389689,116560.0,116550.0,0.64210589]
[1758082423745,0.35389689,116560.0,116550.0,0.60353438]
[1758082425720,0.43913873,116560.0,116550.0,0.2949247]
[1758082425933,0.43608873,116560.0,116550.0,0.2949247]
[1758082429504,0.43913873,116560.0,116550.0,0.2949247]
[1758082431648,0.43608873,116560.0,116550.0,0.2949247]
[1758082434468,0.43608873,116560.0,116550.0,0.2969847]
[1758082435416,0.41148873,116560.0,116550.0,0.2969847]
[1758082436709,0.32929689,116560.0,116550.0,0.2969847]
[1758082437361,0.32929689,116560.0,116550.0,0.3202247]
[1758082439943,0.32718689,116560.0,116550.0,0.49498487]
[1758082444299,0.32928689,116560.0,116550.0,0.0527047]
[1758082444526,0.32928689,116560.0,116550.0,0.62871438]
[1758082448972,0.32928689,116560.0,116550.0,0.36127438]
[1758082449211,0.32928689,116560.0,116550.0,0.62871438]
[1758082452154,0.32928689,116560.0,116550.0,0.36127438]
[1758082452331,0.32928689,116560.0,116550.0,0.62871438]
[1758082452590,0.32718689,116560.0,116550.0,0.63187438]
[1758082452850,0.32928689,116560.0,116550.0,0.63187438]
[1758082453681,0.32928689,116560.0,116550.0,0.62871438]
[1758082454120,0.32928689,116560.0,116550.0,0.3201447]
[1758082455484,0.15560145,116560.0,116550.0,0.80347455]
[1758082466315,0.15560145,116560.0,116550.0,0.53603455]
[1758082466616,0.15260145,116560.0,116550.0,0.80243455]
[1758082467044,0.15460145,116560.0,116550.0,0.80343455]
[1758082469264,0.15460145,116560.0,116550.0,0.53603455]
[1758082469472,0.15460145,116560.0,116550.0,0.80343455]
[1758082477058,0.15460145,116560.0,116550.0,0.80339455]
[1758082484356,0.32618689,116560.0,116550.0,0.80339455]
[1758082485798,0.32618689,116560.0,116550.0,1.18905863]
[1758082489139,0.15460145,116560.0,116550.0,1.18905863]
[1758082491807,0.15460145,116560.0,116550.0,1.38905863]
[1758082494350,0.15460145,116560.0,116550.0,1.12169863]
[1758082494561,0.15460145,116560.0,116550.0,1.38901863]
[1758082495120,0.32828689,116560.0,116550.0,0.60298158]
[1758082495317,0.32828689,116560.0,116550.0,1.03874175]
[1758082496448,0.32828689,116560.0,116550.0,0.77142175]
[1758082496674,0.32828689,116560.0,116550.0,1.03874175]
[1758082497254,0.32828689,116560.0,116550.0,0.74818175]
[1758082497472,0.35088689,116560.0,116550.0,1.01550175]
[1758082498726,0.32828689,116560.0,116550.0,1.03966175]
[1758082502404,0.32828689,116560.0,116550.0,0.2294647]
[1758082502611,0.35593689,116560.0,116550.0,0.84184158]
[1758082504085,0.35593689,116560.0,116550.0,0.2274047]
[1758082504321,0.35593689,116560.0,116550.0,0.57452158]
[1758082504702,0.35298689,116560.0,116550.0,0.57452158]
[1758082506505,0.35298689,116560.0,116550.0,0.2274047]
[1758082506718,0.35298689,116560.0,116550.0,0.57452158]
[1758082507121,0.35298689,116560.0,116550.0,0.84184158]
[1758082509221,0.35298689,116560.0,116550.0,0.84180158]
[1758082510208,0.62026689,116560.0,116550.0,0.84180158]
[1758082510997,0.35298689,116560.0,116550.0,0.84180158]
[1758082511210,0.35298689,116560.0,116550.0,1.01537175]
[1758082511424,0.62026689,116560.0,116550.0,1.01537175]
[1758082511631,0.35298689,116560.0,116550.0,1.01537175]
[1758082511842,0.59556689,116560.0,116550.0,1.01537175]
[1758082512065,0.32828689,116560.0,116550.0,1.01537175]
[1758082512285,0.32828689,116560.0,116550.0,1.03953175]
[1758082512779,0.32828689,116560.0,116550.0,1.04254175]
[1758082514719,0.32618689,116560.0,116550.0,1.01838175]
[1758082514934,0.32618689,116560.0,116550.0,1.04254175]
[1758082515984,0.15460145,116560.0,116550.0,1.04254175]
[1758082517273,0.34971507,116560.0,116550.0,1.01537175]
[1758082517477,0.15460145,116560.0,116550.0,1.04254175]
[1758082518523,0.32618689,116560.0,116550.0,1.04254175]
[1758082518951,0.15460145,116560.0,116550.0,1.04254175]
[1758082519128,0.17604963,116560.0,116550.0,1.04254175]
[1758082519930,0.34763507,116560.0,116550.0,1.04254175]
[1758082520159,0.32826689,116560.0,116550.0,1.04254175]
[1758082522281,0.35591689,116560.0,116550.0,1.01340175]
[1758082522519,0.35296689,116560.0,116550.0,1.01340175]
[1758082522906,0.32826689,116560.0,116550.0,1.01340175]
[1758082523370,0.32826689,116560.0,116550.0,1.01537175]
[1758082523533,0.32826689,116560.0,116550.0,1.03953175]
[1758082524345,0.35296689,116560.0,116550.0,0.66628487]
[1758082524552,0.35296689,116560.0,116550.0,1.01340175]
[1758082525589,0.32826689,116560.0,116550.0,0.74809175]
[1758082525735,0.32826689,116560.0,116550.0,1.01340175]
[1758082525937,0.32826689,116560.0,116550.0,1.03953175]
[1758082531154,0.35286689,116560.0,116550.0,1.01336175]
[1758082532079,0.32826689,116560.0,116550.0,1.01531175]
[1758082532305,0.32826689,116560.0,116550.0,1.03834175]
[1758082532512,0.32826689,116560.0,116550.0,1.04156175]
[1758082532658,0.15460145,116560.0,116550.0,1.04156175]
[1758082532872,0.17604963,116560.0,116550.0,1.04156175]
[1758082533569,0.34763507,116560.0,116550.0,1.04156175]
[1758082533816,0.32618689,116560.0,116550.0,1.04156175]
[1758082535209,0.32318689,116560.0,116550.0,1.04156175]
[1758082539886,0.15160145,116560.0,116550.0,1.04156175]
[1758082540108,0.17304963,116560.0,116550.0,1.04156175]
[1758082541111,0.34463507,116560.0,116550.0,1.04156175]
[1758082541324,0.32318689,116560.0,116550.0,1.04156175]
[1758082541939,0.32518689,116560.0,116550.0,1.04156175]
[1758082542870,0.32318689,116560.0,116550.0,1.04156175]
[1758082544157,0.32318689,116560.0,116550.0,0.77432175]
[1758082544537,0.32518689,116560.0,116550.0,1.04156175]
[1758082544958,0.32518689,116560.0,116550.0,0.60272158]
[1758082545148,0.32518689,116560.0,116550.0,1.03834175]
[1758082545369,0.32518689,116560.0,116550.0,1.01531175]
[1758082545787,0.34978689,116560.0,116550.0,1.01531175]
[1758082546171,0.32518689,116560.0,116550.0,1.01531175]
[1758082547828,0.32518689,116560.0,116550.0,0.99979783]
[1758082549476,0.32518689,116560.0,116550.0,1.00301783]
[1758082550673,0.15160145,116560.0,116550.0,1.00301783]
[1758082550906,0.34463507,116560.0,116550.0,1.00301783]
[1758082551108,0.32318689,116560.0,116550.0,1.00301783]
[1758082552209,0.32518689,116560.0,116550.0,1.00301783]
[1758082552806,0.32518689,116560.0,116550.0,0.99979783]
[1758082554468,0.32518689,116560.0,116550.0,0.40095487]
[1758082554630,0.35302689,116560.0,116550.0,0.66620487]
[1758082555036,0.34978689,116560.0,116550.0,0.66620487]
[1758082556693,0.34978689,116560.0,116550.0,0.66826487]
[1758082559648,0.32518689,116560.0,116550.0,0.66826487]
[1758082560052,0.32518689,116560.0,116550.0,0.69307487]
[1758082562250,0.40685665,116560.0,116550.0,0.2274047]
[1758082562491,0.79430577,116560.0,116550.0,0.201627]
[1758082562691,0.79430577,116560.0,116550.0,0.201527]
[1758082562920,1.06150577,116560.0,116550.0,0.201527]
[1758082563439,1.40150577,116560.0,116550.0,0.201527]
[1758082563645,1.71007873,116560.0,116550.0,0.201527]
[1758082563846,1.40150577,116560.0,116550.0,0.201527]
[1758082564440,1.40050577,116560.0,116550.0,0.201527]
[1758082564805,1.40150577,116560.0,116550.0,0.200527]
[1758082565008,1.40750577,116560.0,116550.0,0.201527]
[1758082566025,1.43329003,116560.0,116550.0,0.201527]
[1758082566526,1.74186299,116560.0,116550.0,0.201527]
[1758082567023,2.07158299,116560.0,116550.0,0.201527]
[1758082569175,1.76301003,116560.0,116550.0,0.201527]
[1758082571549,1.74089577,116560.0,116550.0,0.201527]
[1758082571751,1.76296434,116560.0,116550.0,0.201527]
[1758082572231,1.49572434,116560.0,116550.0,0.201527]
[1758082572475,1.76296434,116560.0,116550.0,0.201527]
[1758082575620,1.76295706,116560.0,116550.0,0.201527]
[1758082578461,1.74093577,116560.0,116550.0,0.201527]
[1758082579788,2.04950873,116560.0,116550.0,0.201527]
[1758082580371,2.05551362,116560.0,116550.0,0.201527]
[1758082580618,2.04950873,116560.0,116550.0,0.201527]
[1758082582560,0.51161489,116540.0,116530.0,4.701e-05]
[1758082582765,1.06046725,116540.0,116530.0,4.701e-05]
[1758082583005,1.35634725,116540.0,116530.0,4.701e-05]
[1758082583219,1.36235261,116540.0,116530.0,4.701e-05]
[1758082583421,1.13701452,116540.0,116530.0,4.701e-05]
[1758082583645,1.40425452,116540.0,116530.0,4.701e-05]
[1758082583947,1.40525452,116540.0,116530.0,4.701e-05]
[1758082584916,1.48525452,116540.0,116530.0,4.701e-05]
[1758082585364,1.48725452,116540.0,116530.0,0.00104701]
[1758082586394,1.49576551,116540.0,116530.0,0.00104701]
[1758082587816,1.49576833,116540.0,116530.0,0.00104701]
[1758082589603,1.18719537,116540.0,116530.0,0.00104701]
[1758082590933,1.52592023,116540.0,116530.0,0.00104701]
[1758082595549,1.52595769,116540.0,116530.0,0.00104701]
[1758082598608,1.25871769,116540.0,116530.0,0.00104701]
[1758082598824,0.95014473,116540.0,116530.0,0.00104701]
[1758082599033,1.52595769,116540.0,116530.0,0.00104701]
[1758082599238,1.25871769,116540.0,116530.0,0.00104701]
[1758082599475,1.52595769,116540.0,116530.0,0.00104701]
[1758082601594,1.18595769,116540.0,116530.0,0.00104701]
[1758082601801,1.52595769,116540.0,116530.0,0.00104701]
[1758082602405,1.25871769,116540.0,116530.0,0.00104701]
[1758082602613,1.52595769,116540.0,116530.0,0.00104701]
[1758082603228,1.21738473,116540.0,116530.0,0.00104701]
[1758082603462,1.52595769,116540.0,116530.0,0.00104701]
[1758082604710,1.85579769,116540.0,116530.0,0.00104701]
[1758082605206,1.90579769,116540.0,116530.0,0.00104701]
[1758082607886,1.6774894,116540.0,116530.0,0.00104701]
[1758082608070,1.9453694,116540.0,116530.0,0.00104701]
[1758082611471,0.20181098,116510.0,116500.0,0.0197537]
[1758082611675,0.68213395,116510.0,116500.0,0.39006837]
[1758082611866,0.68213395,116510.0,116500.0,0.0445737]
[1758082612063,0.68213395,116510.0,116500.0,0.39207837]
[1758082612266,0.70792708,116510.0,116500.0,0.39207837]
[1758082612487,0.70802708,116510.0,116500.0,0.39207837]
[1758082612687,0.70802708,116510.0,116500.0,0.39307837]
[1758082613268,0.70902708,116510.0,116500.0,0.39307837]
[1758082614736,0.70902602,116510.0,116500.0,0.39307837]
[1758082614948,0.70902602,116510.0,116500.0,0.0455737]
[1758082615148,0.70902602,116510.0,116500.0,0.39307837]
[1758082615755,0.70902602,116510.0,116500.0,0.0455737]
[1758082615949,0.70902602,116510.0,116500.0,0.39307837]
[1758082616759,0.70902602,116510.0,116500.0,0.0455737]
[1758082616977,0.70902602,116510.0,116500.0,0.39307837]
[1758082617359,0.70902602,116510.0,116500.0,0.0455737]
[1758082617562,0.70902602,116510.0,116500.0,0.39307837]
[1758082617978,0.70902602,116510.0,116500.0,0.0455737]
[1758082618177,0.70902602,116510.0,116500.0,0.39307837]
[1758082618959,0.70902602,116510.0,116500.0,0.0455737]
[1758082619141,0.70902602,116510.0,116500.0,0.39307837]
[1758082619490,0.70902602,116510.0,116500.0,0.0455737]
[1758082619777,0.70902602,116510.0,116500.0,0.39307837]
[1758082620184,0.70902602,116510.0,116500.0,0.0455737]
[1758082620383,0.70902602,116510.0,116500.0,0.39307837]
[1758082621026,0.70902602,116510.0,116500.0,0.0455737]
[1758082621242,0.70902602,116510.0,116500.0,0.39307837]
[1758082621585,0.70902602,116510.0,116500.0,0.0455737]
[1758082621786,0.70902602,116510.0,116500.0,0.39307837]
[1758082622817,0.71106602,116510.0,116500.0,0.0426337]
[1758082623017,0.71106602,116510.0,116500.0,0.0227637]
[1758082623018,0.70902602,116510.0,116500.0,0.0227637]
[1758082623192,0.70902602,116510.0,116500.0,0.39525837]
[1758082623387,0.44118602,116510.0,116500.0,0.39525837]
[1758082623758,0.71018602,116510.0,116500.0,0.39525837]
[1758082623967,0.71034602,116510.0,116500.0,0.39525837]
[1758082624173,0.44118602,116510.0,116500.0,0.39525837]
[1758082624375,0.71054602,116510.0,116500.0,0.0477537]
[1758082624575,0.71054602,116510.0,116500.0,0.39525837]
[1758082624927,0.44118602,116510.0,116500.0,0.0477537]
[1758082625127,0.71054602,116510.0,116500.0,0.0477537]
[1758082625334,0.44118602,116510.0,116500.0,0.39525837]
[1758082625536,0.71054602,116510.0,116500.0,0.0477537]
[1758082625722,0.71054602,116510.0,116500.0,0.39525837]
[1758082628943,0.44118705,116510.0,116500.0,0.39525837]
[1758082629146,0.71042705,116510.0,116500.0,0.39525837]
[1758082630551,0.71046705,116510.0,116500.0,0.39525837]
[1758082631522,0.71046705,116510.0,116500.0,0.0477537]
[1758082631729,0.44118705,116510.0,116500.0,0.39525837]
[1758082632081,0.71042705,116510.0,116500.0,0.39525837]
[1758082633040,0.71042705,116510.0,116500.0,0.0477537]
[1758082633240,0.44118705,116510.0,116500.0,0.39525837]
[1758082633418,0.71034705,116510.0,116500.0,0.39525837]
[1758082634726,0.71154705,116510.0,116500.0,0.39525837]
[1758082636220,0.71154705,116510.0,116500.0,0.0477537]
[1758082636424,0.71154705,116510.0,116500.0,0.39525837]
[1758082636738,0.71154945,116510.0,116500.0,0.39525837]
[1758082636941,0.71154945,116510.0,116500.0,0.0477537]
[1758082637171,0.71154945,116510.0,116500.0,0.39525837]
[1758082638072,0.71154945,116510.0,116500.0,0.0477537]
[1758082638272,0.71154945,116510.0,116500.0,0.39525837]
[1758082639321,0.71154945,116510.0,116500.0,0.0477537]
[1758082639527,0.71154945,116510.0,116500.0,0.39525837]
[1758082640515,0.71155053,116510.0,116500.0,0.39525837]
[1758082641379,0.71155996,116510.0,116500.0,0.39525837]
[1758082641599,0.71155996,116510.0,116500.0,0.0477537]
[1758082641806,0.71155996,116510.0,116500.0,0.39525837]
[1758082643212,0.71123996,116510.0,116500.0,0.39525837]
[1758082643955,0.71123996,116510.0,116500.0,0.0477537]
[1758082644156,0.71123996,116510.0,116500.0,0.39525837]
[1758082645262,0.71123996,116510.0,116500.0,0.0477537]
[1758082645464,0.71123996,116510.0,116500.0,0.39525837]
[1758082646120,0.71123996,116510.0,116500.0,0.0477537]
[1758082646378,0.71123996,116510.0,116500.0,0.39525837]
[1758082646722,0.79123996,116510.0,116500.0,0.39525837]
[1758082650795,0.79123996,116510.0,116500.0,0.0477537]
[1758082651201,0.79123996,116510.0,116500.0,0.39525837]
[1758082651620,0.79124197,116510.0,116500.0,0.39525837]
[1758082652521,0.79124197,116510.0,116500.0,0.0477537]
[1758082652767,0.79124197,116510.0,116500.0,0.39525837]
[1758082653197,0.79124204,116510.0,116500.0,0.0477537]
[1758082653655,0.79124204,116510.0,116500.0,0.39525837]
[1758082654584,0.79330204,116510.0,116500.0,0.39221837]
[1758082656074,0.79330204,116510.0,116500.0,0.36722837]
[1758082656688,0.79330204,116510.0,116500.0,0.38986837]
[1758082656889,0.79330204,116510.0,116500.0,0.39283837]
[1758082657469,0.79330204,116510.0,116500.0,0.0453337]
[1758082657678,0.79330204,116510.0,116500.0,0.39283837]
[1758082657879,0.79124204,116510.0,116500.0,0.39283837]
[1758082659254,0.78522224,116510.0,116500.0,0.39283837]
[1758082659435,0.79124338,116510.0,116500.0,0.39283837]
[1758082659649,0.79124477,116510.0,116500.0,0.0453337]
[1758082659784,0.79124477,116510.0,116500.0,0.39283837]
[1758082659979,0.79330477,116510.0,116500.0,0.39283837]
[1758082660202,0.79330477,116510.0,116500.0,0.0423637]
[1758082660409,0.79330477,116510.0,116500.0,0.39283837]
[1758082660609,0.79330477,116510.0,116500.0,0.0453337]
[1758082660829,0.79330477,116510.0,116500.0,0.39283837]
[1758082661230,0.79330477,116510.0,116500.0,0.0423637]
[1758082661431,0.79330477,116510.0,116500.0,0.38986837]
[1758082662705,0.79330477,116510.0,116500.0,0.0177137]
[1758082662706,1.50675944,116510.0,116500.0,0.0177137]
[1758082662892,1.15925477,116510.0,116500.0,0.0177137]
[1758082664878,1.15631477,116510.0,116500.0,0.0177137]
[1758082667869,0.88627477,116510.0,116500.0,0.0177137]
[1758082668072,1.15999477,116510.0,116500.0,0.0177137]
[1758082668273,1.13698477,116510.0,116500.0,0.0424237]
[1758082673641,0.86326477,116510.0,116500.0,0.0424237]
[1758082673865,1.13456477,116510.0,116500.0,0.0453937]
[1758082674068,0.86120477,116510.0,116500.0,0.0453937]
[1758082674265,1.13456477,116510.0,116500.0,0.0453937]
[1758082674469,0.86120477,116510.0,116500.0,0.0453937]
[1758082674834,1.12850363,116510.0,116500.0,0.0453937]
[1758082675045,1.13452275,116510.0,116500.0,0.0453937]
[1758082679859,1.13452275,116510.0,116500.0,0.0455237]
[1758082680062,1.13451843,116510.0,116500.0,0.0455237]
[1758082681603,1.13451843,116510.0,116500.0,0.0424237]
[1758082681604,1.13667927,116510.0,116500.0,0.0424237]
[1758082681827,1.13667927,116510.0,116500.0,0.0455237]
[1758082683000,1.13667927,116510.0,116500.0,0.0177137]
[1758082683214,1.16307927,116510.0,116500.0,0.0177137]
[1758082683406,1.16000927,116510.0,116500.0,0.0177137]
[1758082683690,1.16000927,116510.0,116500.0,0.0198637]
[1758082683893,1.16000927,116510.0,116500.0,0.0177137]
[1758082684253,1.13667927,116510.0,116500.0,0.0177137]
[1758082684485,1.16307927,116510.0,116500.0,0.0177137]
[1758082685554,1.16000927,116510.0,116500.0,0.0177137]
[1758082686601,1.16307927,116510.0,116500.0,0.0177137]
[1758082687073,1.16000927,116510.0,116500.0,0.0177137]
[1758082687320,1.16307927,116510.0,116500.0,0.0177137]
[1758082689395,1.16000927,116510.0,116500.0,0.0177137]
[1758082690143,1.16307927,116510.0,116500.0,0.0177137]
[1758082691128,1.16308048,116510.0,116500.0,0.0177137]
[1758082691580,1.16001048,116510.0,116500.0,0.0177137]